[Event "Early-Titled-Tuesday-Blitz-February-06-2024"]
[Site "Chess.com"]
[Date "2024.02.06"]
[Round "8"]
[White "carloseduar100"]
[Black "Attacker_2006"]
[Result "1-0"]
[WhiteElo "2333"]
[BlackElo "2478"]
[TimeControl "180+1"]
[EndTime "9:28:05 PST"]
[Termination "carloseduar100 won by resignation"]

1. g3 {[%clk 0:03:00]} 1... e5 {[%clk 0:02:58.6]} 2. Bg2 {[%clk 0:03:00.9]} 2...
d5 {[%clk 0:02:58.5]} 3. b4 {[%clk 0:03:00.5]} 3... Bxb4 {[%clk 0:02:51]} 4. c4
{[%clk 0:03:00.1]} 4... Bc5 {[%clk 0:02:26]} 5. cxd5 {[%clk 0:02:59]} 5... Nf6
{[%clk 0:02:24.6]} 6. Nc3 {[%clk 0:02:58]} 6... O-O {[%clk 0:02:20.6]} 7. e3
{[%clk 0:02:57.1]} 7... Nbd7 {[%clk 0:02:06.7]} 8. Nge2 {[%clk 0:02:57.6]} 8...
Re8 {[%clk 0:02:02.4]} 9. O-O {[%clk 0:02:56.7]} 9... Nb6 {[%clk 0:02:02.1]} 10.
e4 {[%clk 0:02:34.7]} 10... c6 {[%clk 0:01:56.2]} 11. dxc6 {[%clk 0:02:26.9]}
11... bxc6 {[%clk 0:01:56]} 12. a4 {[%clk 0:02:18.5]} 12... Ba6 {[%clk
0:01:45.7]} 13. Ba3 {[%clk 0:01:56.7]} 13... Bxa3 {[%clk 0:01:39.5]} 14. Rxa3
{[%clk 0:01:57.6]} 14... Nc4 {[%clk 0:01:35]} 15. Ra2 {[%clk 0:01:54.1]} 15...
Qa5 {[%clk 0:01:22.1]} 16. d4 {[%clk 0:01:47.5]} 16... Rad8 {[%clk 0:01:18.4]}
17. d5 {[%clk 0:01:46.5]} 17... cxd5 {[%clk 0:01:14.8]} 18. Nxd5 {[%clk
0:01:47.2]} 18... Nxd5 {[%clk 0:01:10.6]} 19. exd5 {[%clk 0:01:47.5]} 19... Bb7
{[%clk 0:01:05.6]} 20. Qd3 {[%clk 0:01:36.1]} 20... Nb6 {[%clk 0:00:56.8]} 21.
d6 {[%clk 0:01:23.2]} 21... Bxg2 {[%clk 0:00:53.6]} 22. Kxg2 {[%clk 0:01:24.1]}
22... Nd5 {[%clk 0:00:52.2]} 23. Qb5 {[%clk 0:01:16.4]} 23... Qxb5 {[%clk
0:00:41.9]} 24. axb5 {[%clk 0:01:17.3]} 24... Rxd6 {[%clk 0:00:41.8]} 25. Rxa7
{[%clk 0:01:17.2]} 25... Rb6 {[%clk 0:00:41.6]} 26. Rb1 {[%clk 0:01:08.5]} 26...
f6 {[%clk 0:00:37.1]} 27. Rd7 {[%clk 0:01:07.6]} 27... Ne7 {[%clk 0:00:14.6]}
28. Nc3 {[%clk 0:01:04.3]} 28... Nf5 {[%clk 0:00:14.2]} 29. Nd5 {[%clk
0:01:00.8]} 29... Rbb8 {[%clk 0:00:13.1]} 30. b6 {[%clk 0:01:01.1]} 30... Kf8
{[%clk 0:00:12.8]} 31. b7 {[%clk 0:01:00.9]} 31... Nd4 {[%clk 0:00:13]} 32. Nc7
{[%clk 0:00:57.3]} 32... Re7 {[%clk 0:00:12.6]} 33. Na6 {[%clk 0:00:40]} 33...
Ree8 {[%clk 0:00:09.1]} 34. Nxb8 {[%clk 0:00:38.2]} 34... Rxb8 {[%clk 0:00:10]}
35. Rc1 {[%clk 0:00:35]} 1-0

[Event "Early-Titled-Tuesday-Blitz-February-06-2024"]
[Site "Chess.com"]
[Date "2024.02.06"]
[Round "8"]
[White "Natalya_Buksa"]
[Black "Jumbo"]
[Result "0-1"]
[WhiteElo "2576"]
[BlackElo "2842"]
[TimeControl "180+1"]
[EndTime "9:28:07 PST"]
[Termination "Jumbo won by resignation"]

1. d4 {[%clk 0:02:58.5]} 1... Nf6 {[%clk 0:02:59.4]} 2. Nc3 {[%clk 0:02:59.1]}
2... d5 {[%clk 0:02:58.7]} 3. Bf4 {[%clk 0:02:59.6]} 3... g6 {[%clk 0:02:57.9]}
4. e3 {[%clk 0:02:59.8]} 4... Bg7 {[%clk 0:02:58.3]} 5. h4 {[%clk 0:03:00.4]}
5... h5 {[%clk 0:02:56.6]} 6. Nf3 {[%clk 0:02:59.6]} 6... O-O {[%clk 0:02:54]}
7. Be2 {[%clk 0:02:58]} 7... c5 {[%clk 0:02:54.2]} 8. Ne5 {[%clk 0:02:56.8]}
8... Nc6 {[%clk 0:02:49.6]} 9. dxc5 {[%clk 0:02:52]} 9... Qa5 {[%clk 0:02:43.8]}
10. O-O {[%clk 0:02:28.3]} 10... Qxc5 {[%clk 0:02:41.4]} 11. a3 {[%clk
0:02:25.1]} 11... Bf5 {[%clk 0:02:27.3]} 12. Nxc6 {[%clk 0:02:21.7]} 12... Qxc6
{[%clk 0:02:19.9]} 13. Be5 {[%clk 0:02:21.1]} 13... Rfd8 {[%clk 0:02:20.5]} 14.
Bf3 {[%clk 0:02:16.6]} 14... Rac8 {[%clk 0:02:02.3]} 15. Rc1 {[%clk 0:02:10]}
15... Qe6 {[%clk 0:01:58.3]} 16. Bd4 {[%clk 0:01:59.2]} 16... a6 {[%clk
0:01:53.8]} 17. a4 {[%clk 0:01:55.1]} 17... Qd6 {[%clk 0:01:52.2]} 18. a5 {[%clk
0:01:30.8]} 18... e5 {[%clk 0:01:50.4]} 19. Bb6 {[%clk 0:01:31.4]} 19... Rd7
{[%clk 0:01:50.8]} 20. g3 {[%clk 0:01:30.7]} 20... Qe6 {[%clk 0:01:49.2]} 21.
Re1 {[%clk 0:01:28.8]} 21... Bf8 {[%clk 0:01:43.5]} 22. Na4 {[%clk 0:01:18.5]}
22... Bg4 {[%clk 0:01:37.3]} 23. c3 {[%clk 0:01:14.6]} 23... Rc4 {[%clk
0:01:22.2]} 24. b3 {[%clk 0:01:13.2]} 24... Bxf3 {[%clk 0:01:21.8]} 25. Qxf3
{[%clk 0:01:13]} 25... Rg4 {[%clk 0:01:22.3]} 26. b4 {[%clk 0:01:09.9]} 26...
Ne4 {[%clk 0:01:21.5]} 27. Red1 {[%clk 0:00:57.6]} 27... g5 {[%clk 0:01:13.7]}
28. hxg5 {[%clk 0:00:37.3]} 28... Nxg5 {[%clk 0:01:10.9]} 29. Qg2 {[%clk
0:00:33.8]} 29... h4 {[%clk 0:01:05.9]} 30. c4 {[%clk 0:00:22.1]} 30... dxc4
{[%clk 0:00:57.7]} 31. Rxd7 {[%clk 0:00:21.6]} 31... Qxd7 {[%clk 0:00:58.6]} 32.
Nc5 {[%clk 0:00:21.7]} 32... Bxc5 {[%clk 0:00:54.3]} 33. Bxc5 {[%clk 0:00:22.6]}
33... h3 {[%clk 0:00:39.2]} 34. Qh1 {[%clk 0:00:19.9]} 34... e4 {[%clk
0:00:38.3]} 35. Bd4 {[%clk 0:00:17.9]} 35... c3 {[%clk 0:00:32.2]} 36. Rxc3
{[%clk 0:00:16.1]} 36... Nf3+ {[%clk 0:00:32.1]} 37. Kf1 {[%clk 0:00:15.8]}
37... Qb5+ {[%clk 0:00:32.6]} 0-1

[Event "Early-Titled-Tuesday-Blitz-February-06-2024"]
[Site "Chess.com"]
[Date "2024.02.06"]
[Round "8"]
[White "FMStan15"]
[Black "disciplinedbrat"]
[Result "0-1"]
[WhiteElo "2045"]
[BlackElo "2304"]
[TimeControl "180+1"]
[EndTime "9:28:07 PST"]
[Termination "disciplinedbrat won by resignation"]

1. e4 {[%clk 0:02:59.9]} 1... c5 {[%clk 0:02:58.4]} 2. c3 {[%clk 0:02:58.7]}
2... d5 {[%clk 0:02:58.1]} 3. e5 {[%clk 0:02:58.3]} 3... Nc6 {[%clk 0:02:57.2]}
4. d4 {[%clk 0:02:58.5]} 4... Bf5 {[%clk 0:02:57.1]} 5. Bd3 {[%clk 0:02:58.3]}
5... Bxd3 {[%clk 0:02:54.1]} 6. Qxd3 {[%clk 0:02:57.8]} 6... e6 {[%clk 0:02:55]}
7. Ne2 {[%clk 0:02:57.7]} 7... Qb6 {[%clk 0:02:54.3]} 8. O-O {[%clk 0:02:57.4]}
8... Nge7 {[%clk 0:02:54.3]} 9. Rd1 {[%clk 0:02:57.6]} 9... Nf5 {[%clk 0:02:52]}
10. a3 {[%clk 0:02:56.6]} 10... c4 {[%clk 0:02:49]} 11. Qh3 {[%clk 0:02:55.8]}
11... Be7 {[%clk 0:02:46]} 12. Nf4 {[%clk 0:02:51.9]} 12... O-O-O {[%clk
0:02:40.7]} 13. Nd2 {[%clk 0:02:39.5]} 13... g5 {[%clk 0:02:28.3]} 14. Nh5
{[%clk 0:02:37.4]} 14... g4 {[%clk 0:02:24.6]} 15. Qxg4 {[%clk 0:02:30]} 15...
Rhg8 {[%clk 0:02:21.5]} 16. Qe2 {[%clk 0:02:24.3]} 16... Ncxd4 {[%clk
0:02:14.6]} 17. cxd4 {[%clk 0:02:22.5]} 17... Nxd4 {[%clk 0:02:14.9]} 18. Qf1
{[%clk 0:02:06.1]} 18... Bg5 {[%clk 0:02:00.2]} 19. Kh1 {[%clk 0:01:54.1]} 19...
Rg6 {[%clk 0:01:52.2]} 20. f4 {[%clk 0:01:51.2]} 20... Be7 {[%clk 0:01:49.3]}
21. Nf3 {[%clk 0:01:31.6]} 21... Nb3 {[%clk 0:01:19.8]} 22. Rb1 {[%clk
0:01:27.8]} 22... Rdg8 {[%clk 0:01:19.6]} 23. Ng3 {[%clk 0:01:11.6]} 23... h5
{[%clk 0:01:00.8]} 24. Nxh5 {[%clk 0:01:04]} 24... Rxg2 {[%clk 0:00:53]} 25.
Qxg2 {[%clk 0:01:03.5]} 25... Rxg2 {[%clk 0:00:53.9]} 26. Kxg2 {[%clk
0:01:03.8]} 26... d4 {[%clk 0:00:54.2]} 27. Ng3 {[%clk 0:00:48.7]} 27... d3
{[%clk 0:00:47.8]} 28. Nd2 {[%clk 0:00:47.6]} 28... Qc6+ {[%clk 0:00:46.7]} 29.
Kf1 {[%clk 0:00:40.9]} 29... Nd4 {[%clk 0:00:42.3]} 30. Nde4 {[%clk 0:00:36.9]}
30... Bh4 {[%clk 0:00:38.4]} 31. Be3 {[%clk 0:00:35.3]} 31... Bxg3 {[%clk
0:00:36.7]} 32. Bxd4 {[%clk 0:00:30]} 32... Qxe4 {[%clk 0:00:33.1]} 33. hxg3
{[%clk 0:00:29.9]} 33... Qxd4 {[%clk 0:00:32.4]} 34. Rd2 {[%clk 0:00:28.6]}
34... Qe3 {[%clk 0:00:29.8]} 35. Rg2 {[%clk 0:00:25]} 35... d2 {[%clk 0:00:21]}
36. Rd1 {[%clk 0:00:22.1]} 36... Qf3+ {[%clk 0:00:21.3]} 37. Kg1 {[%clk
0:00:20]} 37... Qxd1+ {[%clk 0:00:21.6]} 38. Kh2 {[%clk 0:00:19.8]} 38... Qe1
{[%clk 0:00:22.3]} 0-1

[Event "Early-Titled-Tuesday-Blitz-February-06-2024"]
[Site "Chess.com"]
[Date "2024.02.06"]
[Round "8"]
[White "stratacticos"]
[Black "simonachess"]
[Result "0-1"]
[WhiteElo "2042"]
[BlackElo "2314"]
[TimeControl "180+1"]
[EndTime "9:28:07 PST"]
[Termination "simonachess won on time"]

1. b4 {[%clk 0:02:58.8]} 1... Nf6 {[%clk 0:02:26.9]} 2. Bb2 {[%clk 0:02:57.5]}
2... g6 {[%clk 0:02:27.4]} 3. g3 {[%clk 0:02:51]} 3... Bg7 {[%clk 0:02:27.6]} 4.
Bg2 {[%clk 0:02:51.3]} 4... d6 {[%clk 0:02:28.2]} 5. d4 {[%clk 0:02:48.5]} 5...
c6 {[%clk 0:02:27.4]} 6. Nf3 {[%clk 0:02:44.1]} 6... Nbd7 {[%clk 0:02:27.5]} 7.
O-O {[%clk 0:02:43]} 7... O-O {[%clk 0:02:27.6]} 8. c4 {[%clk 0:02:41.7]} 8...
Qc7 {[%clk 0:02:27.8]} 9. e4 {[%clk 0:02:31]} 9... e5 {[%clk 0:02:26.7]} 10.
dxe5 {[%clk 0:02:28.7]} 10... dxe5 {[%clk 0:02:26.1]} 11. Nc3 {[%clk 0:02:28.1]}
11... Re8 {[%clk 0:02:26]} 12. a4 {[%clk 0:02:12.3]} 12... Nf8 {[%clk
0:02:22.4]} 13. a5 {[%clk 0:02:11.2]} 13... Be6 {[%clk 0:02:16.5]} 14. Qe2
{[%clk 0:01:55.8]} 14... Nh5 {[%clk 0:02:14.8]} 15. Rfc1 {[%clk 0:01:51.1]}
15... f6 {[%clk 0:02:13.8]} 16. Nd5 {[%clk 0:01:50.6]} 16... Qf7 {[%clk
0:02:11.4]} 17. Ne3 {[%clk 0:01:41.6]} 17... h6 {[%clk 0:02:11.5]} 18. b5 {[%clk
0:01:38.9]} 18... Nd7 {[%clk 0:02:04.9]} 19. a6 {[%clk 0:01:36.5]} 19... bxa6
{[%clk 0:02:03.1]} 20. Rxa6 {[%clk 0:01:34.7]} 20... Nb8 {[%clk 0:01:33.6]} 21.
Rxc6 {[%clk 0:01:30]} 21... Nxc6 {[%clk 0:01:33.3]} 22. bxc6 {[%clk 0:01:29.6]}
22... Rac8 {[%clk 0:01:32.8]} 23. Nd5 {[%clk 0:01:17.2]} 23... Rxc6 {[%clk
0:01:30.6]} 24. Ba3 {[%clk 0:01:06.1]} 24... Kh7 {[%clk 0:01:27.7]} 25. Nd2
{[%clk 0:00:58.3]} 25... Bf8 {[%clk 0:01:26.2]} 26. Bxf8 {[%clk 0:00:54.3]}
26... Rxf8 {[%clk 0:01:27.1]} 27. Qf1 {[%clk 0:00:45.6]} 27... Rfc8 {[%clk
0:01:20.1]} 28. Bh3 {[%clk 0:00:43.7]} 28... f5 {[%clk 0:01:10.1]} 29. exf5
{[%clk 0:00:39]} 29... gxf5 {[%clk 0:01:10.6]} 30. Qe2 {[%clk 0:00:37.5]} 30...
Bxd5 {[%clk 0:01:04.4]} 31. Qxe5 {[%clk 0:00:36.4]} 31... Be6 {[%clk 0:00:59.1]}
32. c5 {[%clk 0:00:30.5]} 32... Ng7 {[%clk 0:00:57]} 33. Nf3 {[%clk 0:00:23.6]}
33... Qc7 {[%clk 0:00:51.1]} 34. Qf6 {[%clk 0:00:15.9]} 34... Rxc5 {[%clk
0:00:51.4]} 35. Rxc5 {[%clk 0:00:13.4]} 35... Qxc5 {[%clk 0:00:51.8]} 36. Nh4
{[%clk 0:00:10]} 36... Qc1+ {[%clk 0:00:49.8]} 37. Kg2 {[%clk 0:00:10]} 37...
Bd5+ {[%clk 0:00:44.1]} 38. Nf3 {[%clk 0:00:04.4]} 38... Bxf3+ {[%clk
0:00:41.4]} 0-1

[Event "Early-Titled-Tuesday-Blitz-February-06-2024"]
[Site "Chess.com"]
[Date "2024.02.06"]
[Round "8"]
[White "flomarechot"]
[Black "Narek_Ghimoyan"]
[Result "0-1"]
[WhiteElo "2305"]
[BlackElo "2424"]
[TimeControl "180+1"]
[EndTime "9:28:08 PST"]
[Termination "Narek_Ghimoyan won on time"]

1. Nf3 {[%clk 0:02:54.8]} 1... Nf6 {[%clk 0:02:58.8]} 2. b3 {[%clk 0:02:55]}
2... d5 {[%clk 0:02:57.9]} 3. Bb2 {[%clk 0:02:55.4]} 3... Bf5 {[%clk 0:02:58.8]}
4. e3 {[%clk 0:02:55.1]} 4... c6 {[%clk 0:02:59]} 5. Be2 {[%clk 0:02:55.6]} 5...
Nbd7 {[%clk 0:02:59.1]} 6. O-O {[%clk 0:02:56.2]} 6... e6 {[%clk 0:02:59.7]} 7.
d4 {[%clk 0:02:56.8]} 7... h6 {[%clk 0:03:00]} 8. c4 {[%clk 0:02:56.2]} 8... Bd6
{[%clk 0:02:58.8]} 9. Nc3 {[%clk 0:02:53.3]} 9... O-O {[%clk 0:02:58.2]} 10. Bd3
{[%clk 0:02:53.2]} 10... Ne4 {[%clk 0:02:57.1]} 11. h3 {[%clk 0:02:47.5]} 11...
Qe7 {[%clk 0:02:55.2]} 12. Qc2 {[%clk 0:02:45.7]} 12... Ndf6 {[%clk 0:02:53.6]}
13. Nd2 {[%clk 0:02:38.5]} 13... Nxd2 {[%clk 0:02:48.6]} 14. Qxd2 {[%clk
0:02:38.6]} 14... Bxd3 {[%clk 0:02:47.8]} 15. Qxd3 {[%clk 0:02:38.9]} 15... Ba3
{[%clk 0:02:48.5]} 16. Bxa3 {[%clk 0:02:33]} 16... Qxa3 {[%clk 0:02:49.4]} 17.
e4 {[%clk 0:02:30.8]} 17... dxe4 {[%clk 0:02:48]} 18. Nxe4 {[%clk 0:02:31.7]}
18... Nxe4 {[%clk 0:02:48.7]} 19. Qxe4 {[%clk 0:02:32.6]} 19... Rad8 {[%clk
0:02:48.9]} 20. Rfd1 {[%clk 0:02:30.4]} 20... Rd7 {[%clk 0:02:48.4]} 21. d5
{[%clk 0:02:23.8]} 21... Rfd8 {[%clk 0:02:42.4]} 22. Rd2 {[%clk 0:00:57.3]}
22... cxd5 {[%clk 0:02:40.2]} 23. cxd5 {[%clk 0:00:54.9]} 23... Rxd5 {[%clk
0:02:40.5]} 24. Rxd5 {[%clk 0:00:52.8]} 24... Rxd5 {[%clk 0:02:41.4]} 25. Qc2
{[%clk 0:00:53.1]} 25... Qe7 {[%clk 0:02:24.3]} 26. Rd1 {[%clk 0:00:46.2]} 26...
Rxd1+ {[%clk 0:02:16]} 27. Qxd1 {[%clk 0:00:47.1]} 27... g6 {[%clk 0:02:16.5]}
28. Qd4 {[%clk 0:00:45.9]} 28... a6 {[%clk 0:02:14.6]} 29. a4 {[%clk 0:00:39.8]}
29... Qc7 {[%clk 0:02:12.2]} 30. f4 {[%clk 0:00:20.5]} 30... h5 {[%clk
0:02:11.3]} 31. Kh2 {[%clk 0:00:20.5]} 31... Kh7 {[%clk 0:02:03.9]} 32. Kh1
{[%clk 0:00:19.5]} 32... b5 {[%clk 0:02:01.1]} 33. axb5 {[%clk 0:00:19.4]} 33...
axb5 {[%clk 0:02:02]} 34. Qf6 {[%clk 0:00:19.7]} 34... Kg8 {[%clk 0:02:00.9]}
35. Qd4 {[%clk 0:00:20]} 35... Qa5 {[%clk 0:01:59.1]} 36. Kh2 {[%clk 0:00:18.5]}
36... Qa3 {[%clk 0:01:55.7]} 37. Qd8+ {[%clk 0:00:17.9]} 37... Kg7 {[%clk
0:01:54.8]} 38. Qd4+ {[%clk 0:00:18.5]} 38... Kh7 {[%clk 0:01:54.3]} 39. Qf6
{[%clk 0:00:18.3]} 39... Qf8 {[%clk 0:01:51.6]} 40. g4 {[%clk 0:00:15.8]} 40...
hxg4 {[%clk 0:01:51.4]} 41. hxg4 {[%clk 0:00:16.4]} 41... Kg8 {[%clk 0:01:51.8]}
42. f5 {[%clk 0:00:16.1]} 42... exf5 {[%clk 0:01:44.4]} 43. gxf5 {[%clk
0:00:16.2]} 43... Qh6+ {[%clk 0:01:41.5]} 44. Kg2 {[%clk 0:00:15.3]} 44... Qd2+
{[%clk 0:01:41.7]} 45. Kf3 {[%clk 0:00:13.6]} 45... Qd3+ {[%clk 0:01:41.4]} 46.
Kg4 {[%clk 0:00:13.9]} 46... Qxf5+ {[%clk 0:01:41]} 47. Qxf5 {[%clk 0:00:14.2]}
47... gxf5+ {[%clk 0:01:41.9]} 48. Kxf5 {[%clk 0:00:15.1]} 48... Kg7 {[%clk
0:01:42.1]} 49. b4 {[%clk 0:00:14.9]} 49... f6 {[%clk 0:01:41.7]} 50. Ke4 {[%clk
0:00:11.1]} 50... Kg6 {[%clk 0:01:41.7]} 51. Kd5 {[%clk 0:00:11.7]} 51... f5
{[%clk 0:01:41.9]} 52. Kc5 {[%clk 0:00:12.4]} 52... f4 {[%clk 0:01:41.8]} 53.
Kxb5 {[%clk 0:00:12.9]} 53... f3 {[%clk 0:01:42.3]} 54. Kc6 {[%clk 0:00:13.5]}
54... f2 {[%clk 0:01:42.9]} 55. b5 {[%clk 0:00:14.1]} 55... f1=Q {[%clk
0:01:43.8]} 56. b6 {[%clk 0:00:14.8]} 56... Qa6 {[%clk 0:01:41.6]} 57. Kc7
{[%clk 0:00:11.1]} 57... Qc4+ {[%clk 0:01:41.3]} 58. Kb8 {[%clk 0:00:11.1]}
58... Kf7 {[%clk 0:01:40.7]} 59. b7 {[%clk 0:00:11]} 59... Ke7 {[%clk
0:01:41.6]} 60. Ka7 {[%clk 0:00:10.5]} 60... Qa4+ {[%clk 0:01:40.7]} 61. Kb6
{[%clk 0:00:10.2]} 61... Qb4+ {[%clk 0:01:39.6]} 62. Ka7 {[%clk 0:00:03.8]}
62... Qa5+ {[%clk 0:01:35.7]} 63. Kb8 {[%clk 0:00:04.3]} 63... Kd6 {[%clk
0:01:35.5]} 0-1

[Event "Early-Titled-Tuesday-Blitz-February-06-2024"]
[Site "Chess.com"]
[Date "2024.02.06"]
[Round "8"]
[White "Let_it_be_1"]
[Black "VomDingJetztHer"]
[Result "0-1"]
[WhiteElo "2577"]
[BlackElo "2495"]
[TimeControl "180+1"]
[EndTime "9:28:09 PST"]
[Termination "VomDingJetztHer won by resignation"]

1. e4 {[%clk 0:03:00.9]} 1... c6 {[%clk 0:02:59.8]} 2. d4 {[%clk 0:03:00.7]}
2... d5 {[%clk 0:03:00.4]} 3. Nd2 {[%clk 0:03:01.3]} 3... dxe4 {[%clk
0:03:00.3]} 4. Nxe4 {[%clk 0:03:02.2]} 4... Bf5 {[%clk 0:03:00.5]} 5. Ng3 {[%clk
0:03:02.3]} 5... Bg6 {[%clk 0:03:00.9]} 6. N1e2 {[%clk 0:03:02.7]} 6... Nf6
{[%clk 0:02:58.5]} 7. c3 {[%clk 0:03:01.2]} 7... h6 {[%clk 0:02:51.7]} 8. Nf4
{[%clk 0:02:58.8]} 8... Bh7 {[%clk 0:02:49.4]} 9. Bc4 {[%clk 0:02:57.4]} 9... e6
{[%clk 0:02:41.4]} 10. Qf3 {[%clk 0:02:42.2]} 10... Bd6 {[%clk 0:02:24.8]} 11.
Nfh5 {[%clk 0:02:41.7]} 11... Nxh5 {[%clk 0:02:16.8]} 12. Nxh5 {[%clk
0:02:40.3]} 12... O-O {[%clk 0:02:13.9]} 13. O-O {[%clk 0:01:58.4]} 13... Nd7
{[%clk 0:01:57.9]} 14. Re1 {[%clk 0:01:54.7]} 14... Nb6 {[%clk 0:01:51.3]} 15.
Bb3 {[%clk 0:01:54.3]} 15... Nd5 {[%clk 0:01:51.5]} 16. Bd2 {[%clk 0:01:45.8]}
16... Qh4 {[%clk 0:01:49]} 17. g3 {[%clk 0:01:38.4]} 17... Qh3 {[%clk
0:01:38.4]} 18. c4 {[%clk 0:01:16.1]} 18... Bg6 {[%clk 0:01:27.8]} 19. Nxg7
{[%clk 0:00:45]} 19... Kxg7 {[%clk 0:01:22.4]} 20. cxd5 {[%clk 0:00:44.1]} 20...
cxd5 {[%clk 0:01:17.6]} 21. Bf4 {[%clk 0:00:40.8]} 21... Bxf4 {[%clk 0:01:11.9]}
22. Qxf4 {[%clk 0:00:40.7]} 22... Qf5 {[%clk 0:01:12.2]} 23. Qxf5 {[%clk
0:00:38.7]} 23... Bxf5 {[%clk 0:01:12.4]} 24. Rac1 {[%clk 0:00:39.3]} 24... Rac8
{[%clk 0:01:12.1]} 25. f3 {[%clk 0:00:35.4]} 25... h5 {[%clk 0:01:07.8]} 26. Kf2
{[%clk 0:00:33.6]} 26... Kf6 {[%clk 0:01:07.6]} 27. Ke3 {[%clk 0:00:31.9]} 27...
Ke7 {[%clk 0:01:05.4]} 28. Kf4 {[%clk 0:00:28.9]} 28... Kf6 {[%clk 0:00:51]} 29.
h4 {[%clk 0:00:28.3]} 29... Rg8 {[%clk 0:00:47.9]} 30. Rxc8 {[%clk 0:00:21.7]}
30... Rxc8 {[%clk 0:00:47.2]} 31. g4 {[%clk 0:00:22.6]} 31... hxg4 {[%clk
0:00:46.4]} 32. fxg4 {[%clk 0:00:22]} 32... Be4 {[%clk 0:00:47.1]} 33. Rf1
{[%clk 0:00:20.1]} 33... Rh8 {[%clk 0:00:44.5]} 34. h5 {[%clk 0:00:19.8]} 34...
Rg8 {[%clk 0:00:44.3]} 35. g5+ {[%clk 0:00:18]} 35... Rxg5 {[%clk 0:00:41.2]}
36. Rh1 {[%clk 0:00:18.2]} 36... Rf5+ {[%clk 0:00:37.3]} 37. Ke3 {[%clk
0:00:17.6]} 37... Rf3+ {[%clk 0:00:34.2]} 38. Ke2 {[%clk 0:00:16.5]} 38... Rxb3
{[%clk 0:00:27.4]} 39. Rf1+ {[%clk 0:00:15.9]} 39... Rf3 {[%clk 0:00:27.1]} 40.
Rxf3+ {[%clk 0:00:16.2]} 40... Bxf3+ {[%clk 0:00:27.7]} 41. Kxf3 {[%clk
0:00:16.5]} 41... Kg5 {[%clk 0:00:28.3]} 42. h6 {[%clk 0:00:16.5]} 42... Kxh6
{[%clk 0:00:28.5]} 43. Kf4 {[%clk 0:00:17.4]} 43... f6 {[%clk 0:00:28.5]} 0-1

[Event "Early-Titled-Tuesday-Blitz-February-06-2024"]
[Site "Chess.com"]
[Date "2024.02.06"]
[Round "8"]
[White "Nuvas"]
[Black "Nouali_Mohamed"]
[Result "1-0"]
[WhiteElo "2779"]
[BlackElo "2562"]
[TimeControl "180+1"]
[EndTime "9:28:10 PST"]
[Termination "Nuvas won on time"]

1. d4 {[%clk 0:03:00.1]} 1... d5 {[%clk 0:02:59]} 2. c4 {[%clk 0:03:00.2]} 2...
e6 {[%clk 0:02:59.3]} 3. Nc3 {[%clk 0:03:00.9]} 3... Nf6 {[%clk 0:02:59.6]} 4.
cxd5 {[%clk 0:03:01.5]} 4... exd5 {[%clk 0:02:59.8]} 5. Bg5 {[%clk 0:03:02.2]}
5... Be7 {[%clk 0:02:59.7]} 6. e3 {[%clk 0:03:02.8]} 6... O-O {[%clk 0:02:59.9]}
7. Bd3 {[%clk 0:03:03]} 7... c6 {[%clk 0:02:58.9]} 8. Nf3 {[%clk 0:03:03.1]}
8... Nbd7 {[%clk 0:02:58.9]} 9. h3 {[%clk 0:03:02.9]} 9... Re8 {[%clk
0:02:58.6]} 10. Bf4 {[%clk 0:03:03.3]} 10... Nf8 {[%clk 0:02:44.3]} 11. Qc2
{[%clk 0:03:03.3]} 11... Ne6 {[%clk 0:02:40.3]} 12. Bh2 {[%clk 0:03:01]} 12...
g6 {[%clk 0:02:38.1]} 13. Ne5 {[%clk 0:03:00.3]} 13... Ng7 {[%clk 0:02:36.8]}
14. g4 {[%clk 0:03:00.6]} 14... Bd6 {[%clk 0:02:02.5]} 15. O-O-O {[%clk
0:02:57.7]} 15... Qc7 {[%clk 0:01:40.3]} 16. Kb1 {[%clk 0:02:43.2]} 16... Nd7
{[%clk 0:01:36.7]} 17. Nb5 {[%clk 0:02:31.2]} 17... cxb5 {[%clk 0:01:29.7]} 18.
Qxc7 {[%clk 0:02:31.7]} 18... Bxc7 {[%clk 0:01:28.8]} 19. Nxd7 {[%clk
0:02:32.4]} 19... Bxd7 {[%clk 0:01:20.5]} 20. Bxc7 {[%clk 0:02:32.9]} 20... Ne6
{[%clk 0:01:15.5]} 21. Be5 {[%clk 0:02:31.6]} 21... Ng5 {[%clk 0:01:13]} 22. f4
{[%clk 0:02:04.8]} 22... Ne4 {[%clk 0:01:12]} 23. Bxe4 {[%clk 0:02:02.3]} 23...
dxe4 {[%clk 0:01:12.8]} 24. Bf6 {[%clk 0:01:55.7]} 24... Rac8 {[%clk 0:00:57.9]}
25. d5 {[%clk 0:01:44]} 25... b4 {[%clk 0:00:50.7]} 26. g5 {[%clk 0:01:40.8]}
26... Bb5 {[%clk 0:00:50]} 27. d6 {[%clk 0:01:33.7]} 27... Bd7 {[%clk
0:00:31.3]} 28. h4 {[%clk 0:01:34]} 28... Rc6 {[%clk 0:00:22.6]} 29. h5 {[%clk
0:01:30.2]} 29... a5 {[%clk 0:00:14]} 30. b3 {[%clk 0:00:54.8]} 30... Re6 {[%clk
0:00:12.8]} 31. Be5 {[%clk 0:00:50.2]} 31... Rxe5 {[%clk 0:00:08.2]} 32. fxe5
{[%clk 0:00:49.2]} 32... Rc5 {[%clk 0:00:09.1]} 33. hxg6 {[%clk 0:00:45.8]}
33... hxg6 {[%clk 0:00:08.1]} 34. Rc1 {[%clk 0:00:32.7]} 34... Rxe5 {[%clk
0:00:07.7]} 35. Rc7 {[%clk 0:00:33.3]} 35... Bb5 {[%clk 0:00:02.2]} 36. d7
{[%clk 0:00:31.5]} 1-0